[Event "DSAM Bad Wildungen 2024"]
[Site "Bad Wildungen"]
[Date "2024.08.01"]
[Round "2.46"]
[White "Wadowski, Adam"]
[Black "Aguike, Oka"]
[Result "0-1"]
[Annotator "NA RC"]
[ECO "C29"]
[WhiteElo "1515"]
[BlackElo "1585"]
[PlyCount "52"]
[EventDate "2024.07.31"]
[EventCountry "GER"]
[SourceTitle "playchess.com"]
[Source "ChessBase"]
[SourceQuality "1"]
[TimeControl "40/5400+30:900+30"]

1. e4 {[%emt 0:00:06]} e5 {[%emt 0:00:30]} 2. Nc3 {[%emt 0:00:57]} Nf6 {[%emt 0:00:45]} 3. f4 {[%emt 0:00:09]} Nc6 {[%emt 0:02:54]} 4. fxe5 {[%emt 0:00:28]} Nxe5 {[%emt 0:00:41]} 5. d4 {[%emt 0:00:10]} Ng6 {[%emt 0:02:18]} 6. e5 {[%emt 0:00:12]} Ng8 {[%emt 0:00:35]} 7. Nf3 {[%emt 0:00:25]} d6 {[%emt 0:02:23]} 8. Bc4 {[%emt 0:04:22]} dxe5 {[%emt 0:05:03]} 9. Bxf7+ {[%emt 0:04:28]} Kxf7 {[%emt 0:03:04]} 10. Ng5+ {[%emt 0:00:10]} Ke8 {[%emt 0:02:03]} 11. Qf3 {[%emt 0:01:02]} Nf6 {[%emt 0:05:35]} 12. O-O {[%emt 0:04:04]} Be7 {[%emt 0:03:40]} 13. Nce4 {[%emt 0:11:32]} Kf8 {[%emt 0:03:33]} 14. Qb3 {[%emt 0:02:53]} Qe8 {[%emt 0:07:15]} 15. Nxf6 {[%emt 0:01:15]} gxf6 {[%emt 0:02:38]} 16. Ne4 {[%emt 0:04:21]} Kg7 {[%emt 0:06:27]} 17. Qg3 {[%emt 0:07:46]} Be6 {[%emt 0:08:04]} 18. dxe5 {[%emt 0:02:05]} fxe5 {[%emt 0:01:20]} 19. Ng5 {[%emt 0:03:54]} Bd6 {[%emt 0:08:27]} 20. Bd2 {[%emt 0:01:44]} Qe7 {[%emt 0:04:09]} 21. Bc3 {[%emt 0:02:25]} Rhf8 {[%emt 0:04:05]} 22. Rfe1 {[%emt 0:03:30]} Bc5+ {[%emt 0:01:22]} 23. Kh1 {[%emt 0:00:43]} Bf2 {[%emt 0:02:34]} 24. Bxe5+ {[%emt 0:03:53]} Kg8 {[%emt 0:02:40]} 25. Qd3 {[%emt 0:06:19]} Qxg5 {[%emt 0:01:40]} 26. Re2 {[%emt 0:04:37]} Nxe5 {[%emt 0:01:33]} 0-1

[Event "DSAM Bad Wildungen 2024"]
[Site "Bad Wildungen"]
[Date "2024.08.02"]
[Round "3.1"]
[White "Boehme, Sebastian"]
[Black "Kocak, Ediz"]
[Result "1-0"]
[Annotator "ChessBase"]
[ECO "C48"]
[WhiteElo "2232"]
[BlackElo "2166"]
[PlyCount "107"]
[EventDate "2024.07.31"]
[EventCountry "GER"]
[SourceTitle "playchess.com"]
[Source "ChessBase"]
[SourceQuality "1"]
[TimeControl "40/5400+30:900+30"]

1. e4 {[%emt 0:00:03]} e5 {[%emt 0:10:51]} 2. Nf3 {[%emt 0:00:25]} Nf6 {[%emt 0:00:18]} 3. Nc3 {[%emt 0:00:45]} Nc6 {[%emt 0:00:11]} 4. Bb5 {[%emt 0:00:22]} Nd4 {[%emt 0:00:09]} 5. O-O {[%emt 0:00:19]} Nxb5 {[%emt 0:04:35]} 6. Nxb5 {[%emt 0:00:01]} c6 {[%emt 0:01:24]} 7. Nc3 {[%emt 0:00:05]} d6 {[%emt 0:00:22]} 8. d4 {[%emt 0:00:05]} Qc7 {[%emt 0:01:20]} 9. Bg5 {[%emt 0:00:30]} Be7 {[%emt 0:00:48]} 10. Qd3 {[%emt 0:00:45]} O-O {[%emt 0:09:06]} 11. a4 {[%emt 0:00:57]} Re8 {[%emt 0:03:43]} 12. Bxf6 {[%emt 0:04:37]} Bxf6 {[%emt 0:00:31]} 13. d5 {[%emt 0:00:00]} Be7 {[%emt 0:07:03]} 14. Nd2 {[%emt 0:02:33]} Rf8 {[%emt 0:01:12]} 15. Rfd1 {[%emt 0:09:21]} Bg4 {[%emt 0:11:55]} 16. f3 {[%emt 0:02:03]} Bd7 {[%emt 0:03:33]} 17. a5 h5 {[%emt 0:02:30]} 18. Nc4 c5 {[%emt 0:02:45]} 19. Nxe5 {[%emt 0:13:58]} dxe5 {[%emt 0:00:30]} 20. d6 {[%emt 0:00:30]} Bxd6 {[%emt 0:00:13]} 21. Qxd6 {[%emt 0:00:11]} Qxd6 {[%emt 0:01:15]} 22. Rxd6 {[%emt 0:00:01]} Be6 {[%emt 0:00:32]} 23. Nb5 {[%emt 0:30:25]} Rfc8 {[%emt 0:01:25]} 24. a6 {[%emt 0:00:42]} bxa6 {[%emt 0:18:06]} 25. Rdxa6 {[%emt 0:00:35]} Rd8 {[%emt 0:07:06]} 26. Rc6 {[%emt 0:04:22]} c4 {[%emt 0:03:59]} 27. Nc7 {[%emt 0:06:13]} Rab8 {[%emt 0:00:11]} 28. Nxe6 {[%emt 0:00:16]} fxe6 {[%emt 0:00:06]} 29. Rb1 {[%emt 0:06:43]} Rbc8 {[%emt 0:03:58]} 30. Rxe6 {[%emt 0:01:04]} Rc5 {[%emt 0:00:08]} 31. c3 {[%emt 0:06:32]} Rd2 {[%emt 0:01:03]} 32. Ra6 {[%emt 0:04:46]} h4 {[%emt 0:01:59]} 33. Rg6 {[%emt 0:07:00]} a5 {[%emt 0:01:25]} 34. Rg5 {[%emt 0:00:43]} Rb5 {[%emt 0:02:25]} 35. f4 {[%emt 0:00:10]} Re2 {[%emt 0:00:48]} 36. Rxe5 {[%emt 0:00:52]} Rxe5 {[%emt 0:00:04]} 37. fxe5 {[%emt 0:00:02]} Rxe4 {[%emt 0:00:10]} 38. Rd1 {[%emt 0:00:26]} g5 {[%emt 0:01:13]} 39. Rd5 {[%emt 0:00:13]} Kf7 {[%emt 0:00:32]} 40. Rxa5 {[%emt 0:00:29]} Re2 {[%emt 0:00:17]} 41. Rc5 {[%emt 0:07:39]} Rxb2 {[%emt 0:02:28]} 42. Rxc4 {[%emt 0:00:09]} Re2 {[%emt 0:04:49]} 43. Rc5 {[%emt 0:01:23]} Ke6 {[%emt 0:06:23]} 44. Kf1 {[%emt 0:00:01]} Rc2 {[%emt 0:00:09]} 45. h3 {[%emt 0:02:34]} Ra2 {[%emt 0:00:31]} 46. Rc4 {[%emt 0:02:45]} Kxe5 {[%emt 0:01:15]} 47. Rg4 {[%emt 0:00:02]} Rc2 {[%emt 0:00:33]} 48. Rxg5+ {[%emt 0:01:09]} Kf4 {[%emt 0:00:01]} 49. Rg4+ {[%emt 0:00:22]} Ke3 {[%emt 0:00:05]} 50. Kg1 {[%emt 0:00:04]} Rxc3 {[%emt 0:01:37]} 51. Rxh4 {[%emt 0:00:06]} Rc2 {[%emt 0:00:20]} 52. Kh2 {[%emt 0:00:26]} Kf2 {[%emt 0:00:12]} 53. Rf4+ {[%emt 0:00:04]} Ke3 {[%emt 0:00:04]} 54. Rf8 {[%emt 0:00:17]} 1-0

[Event "DSAM Bad Wildungen 2024"]
[Site "Bad Wildungen"]
[Date "2024.08.02"]
[Round "3.2"]
[White "Kracht, Raphael"]
[Black "Noetzel, Felix"]
[Result "1/2-1/2"]
[Annotator "ChessBase"]
[ECO "C54"]
[WhiteElo "2199"]
[BlackElo "2163"]
[PlyCount "123"]
[EventDate "2024.07.31"]
[EventCountry "GER"]
[SourceTitle "playchess.com"]
[Source "ChessBase"]
[SourceQuality "1"]
[TimeControl "40/5400+30:900+30"]

1. e4 {[%emt 0:04:55]} e5 {[%emt 0:00:07]} 2. Nf3 {[%emt 0:00:05]} Nc6 {[%emt 0:00:04]} 3. Bc4 {[%emt 0:00:05]} Nf6 {[%emt 0:00:05]} 4. d3 {[%emt 0:00:04]} Bc5 {[%emt 0:00:05]} 5. c3 {[%emt 0:02:32]} d6 {[%emt 0:00:05]} 6. O-O {[%emt 0:00:19]} a6 {[%emt 0:00:05]} 7. a4 {[%emt 0:00:04]} Ba7 {[%emt 0:00:11]} 8. Re1 {[%emt 0:00:28]} O-O {[%emt 0:01:18]} 9. h3 {[%emt 0:03:03]} Ne7 {[%emt 0:01:50]} 10. d4 {[%emt 0:00:41]} Ng6 {[%emt 0:02:08]} 11. Bd3 {[%emt 0:00:05]} h6 {[%emt 0:15:48]} 12. Be3 {[%emt 0:10:43]} Re8 {[%emt 0:03:26]} 13. Nbd2 {[%emt 0:10:30]} Nh5 {[%emt 0:18:20]} 14. Bf1 {[%emt 0:02:44]} Nhf4 {[%emt 0:02:45]} 15. Kh2 {[%emt 0:03:47]} Qf6 {[%emt 0:02:08]} 16. g3 {[%emt 0:07:28]} Ne6 {[%emt 0:00:05]} 17. d5 {[%emt 0:05:26]} Bxe3 {[%emt 0:02:24]} 18. Rxe3 {[%emt 0:01:23]} Ng5 {[%emt 0:01:31]} 19. Bg2 {[%emt 0:04:37]} Nxf3+ {[%emt 0:08:35]} 20. Bxf3 {[%emt 0:07:50]} Rf8 {[%emt 0:02:02]} 21. Kg2 {[%emt 0:06:28]} Qg5 {[%emt 0:07:56]} 22. Bg4 {[%emt 0:01:58]} f5 {[%emt 0:06:27]} 23. exf5 {[%emt 0:00:33]} Bxf5 {[%emt 0:00:09]} 24. Ne4 {[%emt 0:02:14]} Bxe4+ {[%emt 0:08:32]} 25. Rxe4 {[%emt 0:00:08]} Kh8 {[%emt 0:01:20]} 26. Qe2 {[%emt 0:05:33]} Qe7 {[%emt 0:08:20]} 27. h4 {[%emt 0:02:40]} Rf6 {[%emt 0:00:13]} 28. f4 {[%emt 0:05:56]} Re8 {[%emt 0:05:25]} 29. Re1 {[%emt 0:00:14]} Qf7 {[%emt 0:00:48]} 30. Be6 {[%emt 0:04:50]} Qe7 {[%emt 0:00:06]} 31. h5 {[%emt 0:00:18]} Nf8 {[%emt 0:00:05]} 32. fxe5 {[%emt 0:00:06]} dxe5 {[%emt 0:00:15]} 33. Rxe5 {[%emt 0:00:15]} Qc5 {[%emt 0:02:00]} 34. Qe3 {[%emt 0:05:19]} Qd6 {[%emt 0:01:53]} 35. c4 {[%emt 0:01:11]} b6 {[%emt 0:00:16]} 36. Re2 {[%emt 0:01:53]} Nh7 {[%emt 0:00:56]} 37. Bf5 {[%emt 0:00:41]} Ref8 {[%emt 0:00:24]} 38. g4 {[%emt 0:00:20]} Ng5 {[%emt 0:00:35]} 39. Re8 {[%emt 0:00:27]} b5 {[%emt 0:00:33]} 40. Rxf8+ {[%emt 0:00:21]} Rxf8 {[%emt 0:00:06]} 41. axb5 {[%emt 0:15:28]} axb5 {[%emt 0:15:05]} 42. b3 {[%emt 0:01:08]} bxc4 {[%emt 0:00:00]} 43. bxc4 {[%emt 0:00:00]} Kg8 {[%emt 0:00:00]} 44. Bg6 {[%emt 0:02:40]} c6 {[%emt 0:03:04]} 45. Rf2 {[%emt 0:00:30]} Rxf2+ {[%emt 0:00:30]} 46. Kxf2 {[%emt 0:00:00]} cxd5 {[%emt 0:00:30]} 47. Qe8+ {[%emt 0:00:08]} Qf8+ {[%emt 0:00:00]} 48. Qxf8+ {[%emt 0:00:06]} Kxf8 {[%emt 0:00:00]} 49. cxd5 {[%emt 0:00:58]} Ke7 {[%emt 0:00:00]} 50. Ke3 {[%emt 0:00:42]} Kd6 {[%emt 0:00:00]} 51. Kd4 {[%emt 0:00:19]} Nf3+ {[%emt 0:00:00]} 52. Ke4 {[%emt 0:00:37]} Ng5+ {[%emt 0:01:10]} 53. Kf5 {[%emt 0:00:28]} Kxd5 {[%emt 0:00:07]} 54. Be8 {[%emt 0:00:09]} Kd6 {[%emt 0:00:02]} 55. Kg6 {[%emt 0:00:24]} Ke7 {[%emt 0:00:04]} 56. Kxg7 {[%emt 0:00:12]} Kxe8 {[%emt 0:00:17]} 57. Kxh6 {[%emt 0:00:03]} Ne6 {[%emt 0:00:20]} 58. Kg6 {[%emt 0:01:06]} Kf8 {[%emt 0:00:03]} 59. Kf6 {[%emt 0:00:26]} Nf4 {[%emt 0:00:20]} 60. h6 {[%emt 0:00:06]} Kg8 {[%emt 0:04:37]} 61. Kf5 {[%emt 0:00:27]} Nh3 {[%emt 0:00:00]} 62. g5 {[%emt 0:02:19]} 1/2-1/2

[Event "DSAM Bad Wildungen 2024"]
[Site "Bad Wildungen"]
[Date "2024.08.02"]
[Round "3.3"]
[White "Bosselmann, Tom Linus"]
[Black "Voicu-Jagodzinsky, Carmen"]
[Result "0-1"]
[Annotator "ChessBase"]
[ECO "B31"]
[WhiteElo "2184"]
[BlackElo "2227"]
[PlyCount "90"]
[EventDate "2024.07.31"]
[EventCountry "GER"]
[SourceTitle "playchess.com"]
[Source "ChessBase"]
[SourceQuality "1"]
[TimeControl "40/5400+30:900+30"]

1. e4 {[%emt 0:00:03]} c5 {[%emt 0:00:13]} 2. Nf3 {[%emt 0:00:07]} Nc6 {[%emt 0:00:04]} 3. Bb5 {[%emt 0:00:04]} g6 {[%emt 0:00:37]} 4. Bxc6 {[%emt 0:00:08]} dxc6 {[%emt 0:00:23]} 5. d3 {[%emt 0:00:10]} Bg7 {[%emt 0:00:09]} 6. h3 {[%emt 0:00:09]} Qc7 {[%emt 0:01:06]} 7. O-O {[%emt 0:00:08]} Nf6 {[%emt 0:03:25]} 8. a4 {[%emt 0:03:37]} O-O {[%emt 0:01:51]} 9. Nc3 {[%emt 0:02:19]} h6 {[%emt 0:23:07]} 10. Be3 {[%emt 0:05:30]} Nd7 {[%emt 0:01:11]} 11. Nd2 {[%emt 0:05:55]} b5 {[%emt 0:18:18]} 12. axb5 {[%emt 0:13:37]} cxb5 {[%emt 0:00:06]} 13. Nxb5 {[%emt 0:01:28]} Qb7 {[%emt 0:04:28]} 14. Ra5 {[%emt 0:15:39]} a6 {[%emt 0:06:25]} 15. Qa1 {[%emt 0:01:09]} Rb8 {[%emt 0:01:28]} 16. Nc3 {[%emt 0:00:54]} Qxb2 {[%emt 0:01:00]} 17. Qxb2 {[%emt 0:01:40]} Rxb2 {[%emt 0:00:02]} 18. Nd5 {[%emt 0:01:28]} Re8 {[%emt 0:10:40]} 19. Nc4 {[%emt 0:09:28]} Rxc2 {[%emt 0:00:41]} 20. Rb1 {[%emt 0:01:12]} Kh7 {[%emt 0:06:34]} 21. Na3 {[%emt 0:12:05]} Ra2 {[%emt 0:02:29]} 22. Nc4 {[%emt 0:00:05]} Rxa5 {[%emt 0:00:13]} 23. Nxa5 {[%emt 0:00:02]} Ne5 {[%emt 0:01:36]} 24. Rb8 {[%emt 0:03:59]} Bd7 {[%emt 0:01:22]} 25. Rb7 {[%emt 0:00:41]} e6 {[%emt 0:03:09]} 26. Nf4 {[%emt 0:04:10]} Bb5 {[%emt 0:02:40]} 27. Bxc5 {[%emt 0:03:06]} Nxd3 {[%emt 0:05:19]} 28. Nxd3 {[%emt 0:00:14]} Bxd3 {[%emt 0:00:03]} 29. Rxf7 {[%emt 0:00:18]} Bxe4 {[%emt 0:00:15]} 30. Nc4 {[%emt 0:03:36]} Bd5 {[%emt 0:00:33]} 31. Nd6 {[%emt 0:00:44]} Rb8 {[%emt 0:01:26]} 32. f3 {[%emt 0:04:25]} g5 {[%emt 0:00:35]} 33. Ra7 {[%emt 0:00:32]} Ra8 {[%emt 0:01:39]} 34. Rd7 {[%emt 0:02:15]} Kg6 {[%emt 0:00:17]} 35. Kf2 {[%emt 0:01:20]} a5 {[%emt 0:00:36]} 36. g4 {[%emt 0:00:54]} a4 {[%emt 0:00:27]} 37. h4 {[%emt 0:02:42]} gxh4 {[%emt 0:01:10]} 38. f4 {[%emt 0:00:01]} Bb2 {[%emt 0:01:15]} 39. f5+ {[%emt 0:00:28]} Kf6 {[%emt 0:01:37]} 40. Nf7 {[%emt 0:03:24]} Rc8 {[%emt 0:01:00]} 41. Bb6 {[%emt 0:06:36]} a3 {[%emt 0:04:05]} 42. g5+ {[%emt 0:04:11]} hxg5 {[%emt 0:01:38]} 43. Nd6 {[%emt 0:04:47]} a2 {[%emt 0:02:08]} 44. Rf7+ {[%emt 0:00:29]} Ke5 {[%emt 0:00:07]} 45. Ra7 {[%emt 0:01:24]} Kxd6 {[%emt 0:00:25]} 0-1

[Event "DSAM Bad Wildungen 2024"]
[Site "Bad Wildungen"]
[Date "2024.08.02"]
[Round "3.4"]
[White "Weidenhoefer, Max"]
[Black "Marcziter, Dmitrii"]
[Result "0-1"]
[Annotator "ChessBase"]
[ECO "B46"]
[WhiteElo "2085"]
[BlackElo "2204"]
[PlyCount "100"]
[EventDate "2024.07.31"]
[EventCountry "GER"]
[SourceTitle "playchess.com"]
[Source "ChessBase"]
[SourceQuality "1"]
[TimeControl "40/5400+30:900+30"]

1. e4 {[%emt 0:00:03]} c5 {[%emt 0:00:22]} 2. Nf3 {[%emt 0:00:10]} a6 {[%emt 0:00:17]} 3. Nc3 {[%emt 0:00:33]} e6 {[%emt 0:00:33]} 4. d4 {[%emt 0:00:08]} cxd4 {[%emt 0:00:06]} 5. Nxd4 {[%emt 0:00:05]} Qc7 {[%emt 0:01:08]} 6. Bd3 {[%emt 0:00:09]} Nf6 {[%emt 0:01:07]} 7. f4 {[%emt 0:00:16]} d6 {[%emt 0:01:26]} 8. Qe2 {[%emt 0:03:45]} Nc6 {[%emt 0:04:01]} 9. Nxc6 {[%emt 0:00:26]} bxc6 {[%emt 0:00:12]} 10. O-O {[%emt 0:04:53]} e5 {[%emt 0:03:49]} 11. Kh1 {[%emt 0:06:03]} Be7 {[%emt 0:01:01]} 12. f5 {[%emt 0:07:32]} h5 {[%emt 0:08:30]} 13. Bg5 {[%emt 0:09:47]} Ng4 {[%emt 0:09:14]} 14. Bxe7 {[%emt 0:01:42]} Qxe7 {[%emt 0:00:04]} 15. h3 {[%emt 0:00:35]} a5 {[%emt 0:14:58]} 16. Qf3 {[%emt 0:09:47]} Qh4 {[%emt 0:03:53]} 17. Rad1 {[%emt 0:05:06]} Bb7 {[%emt 0:02:52]} 18. Bc4 {[%emt 0:02:55]} Rd8 {[%emt 0:00:30]} 19. Rd3 {[%emt 0:04:06]} O-O {[%emt 0:13:51]} 20. Bb3 {[%emt 0:14:03]} Ba6 {[%emt 0:03:32]} 21. Qg3 {[%emt 0:04:23]} Qxg3 {[%emt 0:04:42]} 22. Rxg3 {[%emt 0:00:01]} Bxf1 {[%emt 0:00:21]} 23. hxg4 {[%emt 0:00:04]} Kh7 {[%emt 0:04:48]} 24. g5 {[%emt 0:14:29]} g6 {[%emt 0:00:28]} 25. f6 {[%emt 0:00:07]} Ba6 {[%emt 0:00:28]} 26. Re3 {[%emt 0:06:01]} Bc8 {[%emt 0:02:42]} 27. Na4 {[%emt 0:02:05]} Kg8 {[%emt 0:01:53]} 28. c4 {[%emt 0:02:32]} Be6 {[%emt 0:01:00]} 29. Kh2 {[%emt 0:00:48]} Rb8 {[%emt 0:00:38]} 30. Rd3 {[%emt 0:02:19]} Rfd8 {[%emt 0:00:13]} 31. Kg3 {[%emt 0:00:33]} Kf8 {[%emt 0:02:45]} 32. Kf2 {[%emt 0:00:25]} Ke8 {[%emt 0:00:19]} 33. Ke3 {[%emt 0:00:13]} Rb4 {[%emt 0:00:34]} 34. a3 {[%emt 0:00:24]} Rb7 {[%emt 0:00:58]} 35. Ba2 {[%emt 0:00:05]} Rdd7 {[%emt 0:01:41]} 36. Rd2 {[%emt 0:00:39]} Kd8 {[%emt 0:00:22]} 37. Kd3 {[%emt 0:01:03]} Kc7 {[%emt 0:00:16]} 38. Kc3 {[%emt 0:00:38]} Rd8 {[%emt 0:00:22]} 39. Rd3 {[%emt 0:00:33]} h4 {[%emt 0:00:37]} 40. Rd2 {[%emt 0:00:33]} Rh8 {[%emt 0:00:19]} 41. b4 {[%emt 0:06:57]} axb4+ {[%emt 0:01:32]} 42. axb4 {[%emt 0:00:02]} h3 {[%emt 0:01:19]} 43. c5 {[%emt 0:05:21]} d5 {[%emt 0:00:35]} 44. exd5 {[%emt 0:00:43]} cxd5 {[%emt 0:00:25]} 45. gxh3 {[%emt 0:00:55]} Rxh3+ {[%emt 0:00:07]} 46. Kc2 {[%emt 0:00:09]} Bf5+ {[%emt 0:00:41]} 47. Kc1 {[%emt 0:01:09]} Rxb4 {[%emt 0:02:19]} 48. Nb6 {[%emt 0:00:32]} Rh1+ {[%emt 0:00:55]} 49. Rd1 {[%emt 0:00:05]} Rxd1+ {[%emt 0:00:08]} 50. Kxd1 {[%emt 0:00:01]} Rd4+ {[%emt 0:00:24]} 0-1

[Event "DSAM Bad Wildungen 2024"]
[Site "Bad Wildungen"]
[Date "2024.08.02"]
[Round "3.5"]
[White "Dauth, Benjamin"]
[Black "Diller, Daniel"]
[Result "1/2-1/2"]
[Annotator "ChessBase"]
[ECO "C54"]
[WhiteElo "2247"]
[BlackElo "2140"]
[PlyCount "131"]
[EventDate "2024.07.31"]
[EventCountry "GER"]
[SourceTitle "playchess.com"]
[Source "ChessBase"]
[SourceQuality "1"]
[TimeControl "40/5400+30:900+30"]

1. e4 {[%emt 0:00:23]} e5 {[%emt 0:04:53]} 2. Nf3 {[%emt 0:00:57]} Nc6 {[%emt 0:00:08]} 3. Bc4 {[%emt 0:00:07]} Nf6 {[%emt 0:00:07]} 4. d3 {[%emt 0:00:06]} Bc5 {[%emt 0:00:05]} 5. c3 {[%emt 0:00:59]} a5 {[%emt 0:00:06]} 6. O-O {[%emt 0:00:09]} d6 {[%emt 0:00:16]} 7. h3 {[%emt 0:00:07]} h6 {[%emt 0:02:23]} 8. a4 {[%emt 0:01:04]} g5 {[%emt 0:09:04]} 9. Qb3 {[%emt 0:00:06]} Qe7 {[%emt 0:03:02]} 10. Be3 {[%emt 0:00:08]} O-O {[%emt 0:18:55]} 11. Nbd2 {[%emt 0:02:56]} Nh5 {[%emt 0:05:24]} 12. Kh2 {[%emt 0:11:30]} Nf4 {[%emt 0:08:50]} 13. Ng1 {[%emt 0:04:16]} Kg7 {[%emt 0:03:30]} 14. g3 {[%emt 0:00:10]} Ng6 {[%emt 0:00:48]} 15. Bxc5 {[%emt 0:01:51]} dxc5 {[%emt 0:00:10]} 16. Rae1 {[%emt 0:00:04]} Nd8 {[%emt 0:07:05]} 17. Re3 {[%emt 0:01:21]} Bd7 {[%emt 0:01:09]} 18. Rfe1 {[%emt 0:01:07]} Qe8 {[%emt 0:01:05]} 19. Bb5 {[%emt 0:02:17]} c6 {[%emt 0:02:44]} 20. Bc4 {[%emt 0:00:05]} b5 {[%emt 0:00:24]} 21. axb5 {[%emt 0:00:05]} cxb5 {[%emt 0:00:04]} 22. Bd5 {[%emt 0:00:05]} Ra6 {[%emt 0:04:05]} 23. Qa3 {[%emt 0:02:24]} Qe7 {[%emt 0:00:43]} 24. b4 {[%emt 0:04:33]} cxb4 {[%emt 0:01:56]} 25. cxb4 {[%emt 0:00:05]} Qxb4 {[%emt 0:09:38]} 26. Qxb4 {[%emt 0:00:05]} axb4 {[%emt 0:00:01]} 27. Rb1 {[%emt 0:00:12]} Ne6 {[%emt 0:03:03]} 28. Rxb4 {[%emt 0:01:37]} Nd4 {[%emt 0:00:45]} 29. Rb2 {[%emt 0:00:08]} Ra3 {[%emt 0:02:32]} 30. Nb3 {[%emt 0:02:33]} Rc8 {[%emt 0:03:56]} 31. Nf3 {[%emt 0:01:19]} Nxf3+ {[%emt 0:01:26]} 32. Rxf3 {[%emt 0:00:06]} f6 {[%emt 0:00:33]} 33. d4 {[%emt 0:00:30]} exd4 {[%emt 0:01:41]} 34. Nxd4 {[%emt 0:00:06]} Rxf3 {[%emt 0:01:18]} 35. Nxf3 {[%emt 0:00:05]} Ne7 {[%emt 0:02:02]} 36. Bb3 {[%emt 0:06:03]} Bc6 {[%emt 0:00:39]} 37. Nd4 {[%emt 0:00:47]} Bd7 {[%emt 0:01:19]} 38. Ra2 {[%emt 0:01:20]} Rc7 {[%emt 0:01:20]} 39. Ra8 {[%emt 0:01:46]} Rb7 {[%emt 0:01:13]} 40. Ra6 {[%emt 0:01:00]} b4 {[%emt 0:01:14]} 41. f4 {[%emt 0:15:28]} gxf4 {[%emt 0:10:38]} 42. gxf4 {[%emt 0:00:00]} Ng6 {[%emt 0:00:04]} 43. Bd5 {[%emt 0:00:00]} Rc7 {[%emt 0:00:25]} 44. f5 {[%emt 0:00:00]} Nf4 {[%emt 0:02:28]} 45. Bb3 {[%emt 0:00:00]} Bc8 {[%emt 0:00:13]} 46. Rb6 {[%emt 0:00:00]} Rc3 {[%emt 0:00:43]} 47. Rxb4 {[%emt 0:00:00]} Rxh3+ {[%emt 0:00:12]} 48. Kg1 {[%emt 0:00:00]} Re3 {[%emt 0:01:28]} 49. Rc4 {[%emt 0:00:00]} Ba6 {[%emt 0:02:21]} 50. Rc7+ {[%emt 0:00:00]} Kh8 {[%emt 0:01:03]} 51. Bc2 {[%emt 0:07:57]} Bd3 {[%emt 0:00:48]} 52. Kf2 {[%emt 0:00:47]} Rh3 {[%emt 0:00:24]} 53. Rc8+ {[%emt 0:04:32]} Kh7 {[%emt 0:00:01]} 54. Rc7+ {[%emt 0:02:40]} Kh8 {[%emt 0:00:02]} 55. Rc3 {[%emt 0:00:07]} Bxc2 {[%emt 0:00:24]} 56. Rc8+ {[%emt 0:01:09]} Kg7 {[%emt 0:00:26]} 57. Rc7+ {[%emt 0:00:10]} Kg8 {[%emt 0:00:41]} 58. Nxc2 {[%emt 0:00:04]} Nd3+ {[%emt 0:00:41]} 59. Ke2 {[%emt 0:00:32]} Nf4+ {[%emt 0:00:19]} 60. Ke1 {[%emt 0:01:26]} Rh2 {[%emt 0:00:33]} 61. Nd4 {[%emt 0:00:48]} Rg2 {[%emt 0:01:08]} 62. Kf1 {[%emt 0:00:46]} Rd2 {[%emt 0:00:14]} 63. Ne6 {[%emt 0:00:54]} Nxe6 {[%emt 0:01:04]} 64. fxe6 {[%emt 0:00:04]} Kf8 {[%emt 0:00:09]} 65. Rf7+ {[%emt 0:00:54]} Ke8 {[%emt 0:00:02]} 66. Rxf6 {[%emt 0:45:40]} 1/2-1/2

[Event "DSAM Bad Wildungen 2024"]
[Site "Bad Wildungen"]
[Date "2024.08.02"]
[Round "3.6"]
[White "Gassmann, Volker"]
[Black "Hauser, Carlos"]
[Result "1/2-1/2"]
[Annotator "RC"]
[ECO "D15"]
[WhiteElo "2077"]
[BlackElo "2217"]
[PlyCount "54"]
[EventDate "2024.07.31"]
[EventCountry "GER"]
[SourceTitle "playchess.com"]
[Source "ChessBase"]
[SourceQuality "1"]
[TimeControl "40/5400+30:900+30"]

1. d4 {[%emt 0:00:04]} d5 {[%emt 0:00:09]} 2. c4 {[%emt 0:00:10]} c6 {[%emt 0:00:06]} 3. Nc3 {[%emt 0:00:13]} Nf6 {[%emt 0:00:06]} 4. e3 {[%emt 0:00:28]} a6 {[%emt 0:03:52]} 5. Nf3 {[%emt 0:00:41]} Bf5 {[%emt 0:02:20]} 6. cxd5 {[%emt 0:05:47]} cxd5 {[%emt 0:01:17]} 7. Qb3 {[%emt 0:00:19]} Ra7 {[%emt 0:08:01]} 8. Nh4 {[%emt 0:00:59]} Be4 {[%emt 0:09:47]} 9. f3 {[%emt 0:03:34]} Bg6 {[%emt 0:02:50]} 10. Be2 {[%emt 0:01:06]} e6 {[%emt 0:01:22]} 11. Nxg6 {[%emt 0:07:26]} hxg6 {[%emt 0:00:20]} 12. Bd2 {[%emt 0:04:43]} Be7 {[%emt 0:08:57]} 13. f4 {[%emt 0:14:49]} Nc6 {[%emt 0:06:00]} 14. Rc1 {[%emt 0:12:51]} O-O {[%emt 0:04:25]} 15. O-O {[%emt 0:00:19]} Na5 {[%emt 0:03:12]} 16. Qd1 {[%emt 0:01:54]} b5 {[%emt 0:03:32]} 17. b3 {[%emt 0:00:53]} Qb6 {[%emt 0:05:32]} 18. Bd3 {[%emt 0:00:49]} Rc7 {[%emt 0:03:59]} 19. Nb1 {[%emt 0:09:38]} Nc6 {[%emt 0:04:40]} 20. Qe2 {[%emt 0:04:28]} Rfc8 {[%emt 0:03:26]} 21. Kh1 {[%emt 0:01:14]} Nb4 {[%emt 0:06:13]} 22. Bxb4 {[%emt 0:02:35]} Bxb4 {[%emt 0:00:40]} 23. Rxc7 {[%emt 0:01:20]} Qxc7 {[%emt 0:00:12]} 24. a3 {[%emt 0:02:33]} Bd6 {[%emt 0:01:44]} 25. g3 {[%emt 0:00:42]} Ne4 {[%emt 0:02:05]} 26. Qb2 {[%emt 0:00:45]} f5 {[%emt 0:02:18]} 27. Kg2 {[%emt 0:00:35]} Kf7 {[%emt 0:01:45]} 1/2-1/2

[Event "DSAM Bad Wildungen 2024"]
[Site "Bad Wildungen"]
[Date "2024.08.02"]
[Round "3.7"]
[White "Dathe, Frederick"]
[Black "Fuhrmann, Bahne"]
[Result "1-0"]
[Annotator "RC"]
[ECO "A13"]
[WhiteElo "2247"]
[BlackElo "2152"]
[PlyCount "55"]
[EventDate "2024.07.31"]
[EventCountry "GER"]
[SourceTitle "playchess.com"]
[Source "ChessBase"]
[SourceQuality "1"]
[TimeControl "40/5400+30:900+30"]

1. c4 {[%emt 0:00:23]} e6 {[%emt 0:01:22]} 2. g3 {[%emt 0:01:23]} d5 {[%emt 0:00:12]} 3. Nf3 {[%emt 0:01:17]} d4 {[%emt 0:00:08]} 4. Bg2 {[%emt 0:00:46]} c5 {[%emt 0:00:28]} 5. e3 {[%emt 0:03:09]} Nc6 {[%emt 0:00:12]} 6. d3 {[%emt 0:02:14]} h6 {[%emt 0:00:32]} 7. O-O {[%emt 0:01:23]} Nf6 {[%emt 0:00:05]} 8. exd4 {[%emt 0:01:09]} cxd4 {[%emt 0:00:06]} 9. Bf4 {[%emt 0:01:13]} Nd7 {[%emt 0:00:08]} 10. Na3 {[%emt 0:02:11]} Bc5 {[%emt 0:02:05]} 11. Nc2 {[%emt 0:05:06]} a5 {[%emt 0:01:08]} 12. b3 {[%emt 0:03:49]} O-O {[%emt 0:00:33]} 13. a3 {[%emt 0:04:10]} e5 {[%emt 0:00:47]} 14. Bd2 {[%emt 0:00:42]} Re8 {[%emt 0:00:13]} 15. b4 {[%emt 0:02:19]} Be7 {[%emt 0:00:07]} 16. Re1 {[%emt 0:06:12]} Bf6 {[%emt 0:00:54]} 17. Rb1 {[%emt 0:04:35]} Ndb8 {[%emt 0:09:10]} 18. h3 {[%emt 0:20:34]} Re7 {[%emt 0:20:03]} 19. Nh2 {[%emt 0:01:51]} Bf5 {[%emt 0:07:20]} 20. b5 {[%emt 0:01:59]} Na7 {[%emt 0:01:30]} 21. Qf3 {[%emt 0:01:27]} Qc8 {[%emt 0:18:28]} 22. Ng4 {[%emt 0:05:24]} Bxg4 {[%emt 0:03:09]} 23. hxg4 {[%emt 0:00:14]} Nd7 {[%emt 0:01:16]} 24. Qxb7 {[%emt 0:01:46]} Qxb7 {[%emt 0:01:14]} 25. Bxb7 {[%emt 0:00:06]} Rb8 {[%emt 0:00:13]} 26. Be4 {[%emt 0:00:51]} a4 {[%emt 0:00:22]} 27. Bb4 {[%emt 0:01:33]} Re6 {[%emt 0:01:29]} 28. Bf5 {[%emt 0:01:36]} 1-0